Body Name,URI,Payment Date,Transaction Number,Line Amount,Supplier,Supplier No.,Cost Centre,Area,Account Code Description,Revenue/Capital,,
Police and Crime Commissioner for Cumbria,201707003,04/07/17,178521,565.60,Arrow County Supplies,20146,581100,South TPA,Other Cleaning & Domestic Equipment,Revenue,,
Police and Crime Commissioner for Cumbria,201707005,12/07/17,178634,876.68,Arrow County Supplies,20146,581200,North TPA,Other Cleaning & Domestic Equipment,Revenue,,
Police and Crime Commissioner for Cumbria,201707024,12/07/17,178758,"1,382.00",Nationwide Franking Sense Ltd,24397,500101,South TPA,Office Equipment - Purchase,Revenue,,
Police and Crime Commissioner for Cumbria,201707025,12/07/17,178758,"1,382.00",Nationwide Franking Sense Ltd,24397,500350,West TPA,Office Equipment - Purchase,Revenue,,
Police and Crime Commissioner for Cumbria,201707026,12/07/17,178758,"2,773.50",Nationwide Franking Sense Ltd,24397,500150,South TPA,Office Equipment - Purchase,Revenue,,
Police and Crime Commissioner for Cumbria,201707044,26/07/17,178931,648.22,Arnold Clark Automobiles Ltd,22004,545100,South TPA,Vehicle Maintenance - Parts Purchase,Revenue,,
Police and Crime Commissioner for Cumbria,201707045,26/07/17,178931,553.28,Arnold Clark Automobiles Ltd,22004,545100,South TPA,Vehicle Maintenance - Parts Purchase,Revenue,,
Police and Crime Commissioner for Cumbria,201707066,12/07/17,178772,"1,450.00",PSS Home Entertainment Ltd (Penrith Satellite Systems),20865,581100,South TPA,Office Equipment - Purchase,Revenue,,
Police and Crime Commissioner for Cumbria,201707067,12/07/17,178772,564.00,PSS Home Entertainment Ltd (Penrith Satellite Systems),20865,581100,South TPA,Office Equipment - Purchase,Revenue,,
Police and Crime Commissioner for Cumbria,201707073,26/07/17,178978,935.68,Redacted: Operationally Sensitive,20281,567005,Uniform Operational Support,Police Dogs - Vets Fees,Revenue,,
Police and Crime Commissioner for Cumbria,201707075,12/07/17,178792,"1,000.00",Sproat Parker t/a Morrison's Motor Body Repairs Ltd,21200,564200,Uniform Operational Support,Accident Damage (Below Insurance Threshold),Revenue,,
Police and Crime Commissioner for Cumbria,201707076,04/07/17,178607,"1,000.00",Sproat Parker t/a Morrison's Motor Body Repairs Ltd,21200,545300,West TPA,Accident Damage (Below Insurance Threshold),Revenue,,
Police and Crime Commissioner for Cumbria,201707078,26/07/17,179043,"1,000.00",Sproat Parker t/a Morrison's Motor Body Repairs Ltd,21200,545200,North TPA,Accident Damage (Below Insurance Threshold),Revenue,,
Police and Crime Commissioner for Cumbria,201707083,26/07/17,179039,812.61,Shortridge Laundry,22017,516350,Uniform Operational Support,Detained Persons - Laundry,Revenue,,
Police and Crime Commissioner for Cumbria,201707084,26/07/17,179039,823.80,Shortridge Laundry,22017,516150,Uniform Operational Support,Detained Persons - Laundry,Revenue,,
Police and Crime Commissioner for Cumbria,201707087,04/07/17,178586,864.00,Redacted: Operationally Sensitive,20333,593005,Uniform Operational Support,Hotel Accommodation,Revenue,,
Police and Crime Commissioner for Cumbria,201707114,26/07/17,179036,"1,600.00",Sellox Limited,24432,568005,Uniform Operational Support,Conference & Seminar Fees,Revenue,,
Police and Crime Commissioner for Cumbria,201707115,26/07/17,179036,600.00,Sellox Limited,24432,568005,Uniform Operational Support,Conference & Seminar Fees,Revenue,,
Police and Crime Commissioner for Cumbria,201707134,26/07/17,178977,"1,055.00",FMG Support (RRRM) Ltd,20076,564005,Uniform Operational Support,Vehicle Recovery Costs,Revenue,,
Police and Crime Commissioner for Cumbria,201707158,26/07/17,178994,704.00,Redacted: Operationally Sensitive,22313,567005,Uniform Operational Support,Police Dogs - Vets Fees,Revenue,,
Police and Crime Commissioner for Cumbria,201707160,26/07/17,178984,"3,150.00",Redacted: Operationally Sensitive,21777,545100,South TPA,Confiscated Animal Costs,Revenue,,
Police and Crime Commissioner for Cumbria,201707163,04/07/17,178575,727.90,Lloyd Motors South Lakes Ltd,22962,564100,Uniform Operational Support,Vehicle Maintenance - Parts Purchase,Revenue,,
Police and Crime Commissioner for Cumbria,201707165,12/07/17,178742,"1,000.00",Long Lane Garage,20847,545100,South TPA,Accident Damage (Below Insurance Threshold),Revenue,,
Police and Crime Commissioner for Cumbria,201707166,12/07/17,178639,"1,477.35",Redacted: Operationally Sensitive,20582,545100,South TPA,Confiscated Animal Costs,Revenue,,
Police and Crime Commissioner for Cumbria,201707167,04/07/17,178535,537.00,Centric Office Solutions Limited,20459,545200,North TPA,Furniture - DSE Specialist Furniture,Revenue,,
Police and Crime Commissioner for Cumbria,201707170,26/07/17,178985,529.62,Redacted: Operationally Sensitive,20287,545100,South TPA,Vehicle Maintenance - Parts Purchase,Revenue,,
Police and Crime Commissioner for Cumbria,201707213,26/07/17,179023,"5,688.00",Police and Crime Commissioner for Greater Manchester,20285,591005,Territorial Policing Command,Other Third Party Payments,Revenue,,
Police and Crime Commissioner for Cumbria,201707233,04/07/17,178572,850.00,J S B Print Solutions Ltd,21115,235005,Uniform Operational Support,External Printing,Revenue,,
Police and Crime Commissioner for Cumbria,201707234,12/07/17,178724,680.00,J S B Print Solutions Ltd,21115,235005,Uniform Operational Support,External Printing,Revenue,,
Police and Crime Commissioner for Cumbria,201707245,26/07/17,178948,584.43,Capita Translation and Interpreting (Applied Language Solutions Ltd),21629,516204,Uniform Operational Support,Interpreters Fees - Telephone,Revenue,,
Police and Crime Commissioner for Cumbria,201707251,26/07/17,178982,"1,851.00",GMK Limited,21221,568005,Uniform Operational Support,Firearms Equipment,Revenue,,
Police and Crime Commissioner for Cumbria,201707252,26/07/17,178982,"1,422.00",GMK Limited,21221,568005,Uniform Operational Support,Firearms Equipment,Revenue,,
Police and Crime Commissioner for Cumbria,201707260,26/07/17,179045,"3,960.00",The Atacc Group,23026,568005,Uniform Operational Support,Other Support Function Training,Revenue,,
Police and Crime Commissioner for Cumbria,201707275,12/07/17,178763,649.50,OSI Ltd,23503,568005,Uniform Operational Support,Office Stationery,Revenue,,
Police and Crime Commissioner for Cumbria,201707297,04/07/17,178561,532.00,Francotyp Postalia Ltd,21353,581100,South TPA,Postage Costs,Revenue,,
Police and Crime Commissioner for Cumbria,201707298,04/07/17,178608,"16,850.16",Tellemachus Limited,23514,596010,Uniform Operational Support,Other Third Party Payments,Revenue,,
Police and Crime Commissioner for Cumbria,201707299,04/07/17,178608,"7,580.00",Tellemachus Limited,23514,596010,Uniform Operational Support,Other Third Party Payments,Revenue,,
Police and Crime Commissioner for Cumbria,201707300,04/07/17,178608,"1,710.00",Tellemachus Limited,23514,596010,Uniform Operational Support,Other Third Party Payments,Revenue,,
Police and Crime Commissioner for Cumbria,201707301,26/07/17,179044,"16,850.16",Tellemachus Limited,23514,596010,Uniform Operational Support,Other Third Party Payments,Revenue,,
Police and Crime Commissioner for Cumbria,201707313,19/07/17,178895,"5,912.33",Police and Crime Commissioner for West Yorkshire,20628,560005,Uniform Operational Support,Contribution to NPAS,Revenue,,
Police and Crime Commissioner for Cumbria,201707028,19/07/17,178838,"3,368.50",BT Business Direct Ltd,22229,273005,Intelligence,Operational Equipment - Hi-Tech. Crime,Revenue,,
Police and Crime Commissioner for Cumbria,201707051,12/07/17,178805,"4,375.65",Thomas Graham & Sons Ltd,20457,607005,Major Operations,Operational Equipment - Other,Revenue,,
Police and Crime Commissioner for Cumbria,201707063,04/07/17,178547,700.00,Redacted: Personal Data,22285,221100,Operations,Operational Equipment - Other,Revenue,,
Police and Crime Commissioner for Cumbria,201707100,19/07/17,178917,"1,257.92",W A Products (UK) Ltd,20477,214005,Operations,CSI Consumables,Revenue,,
Police and Crime Commissioner for Cumbria,201707101,04/07/17,178588,"1,000.00",Police and Crime Commissioner for Essex,20435,292100,Intelligence,Other Operational Training,Revenue,,
Police and Crime Commissioner for Cumbria,201707104,26/07/17,179022,750.00,PMD Magnetics (Pangbourne Musical Distributors Ltd),20329,212005,Operations,Operational Equipment - Recordable Media,Revenue,,
Police and Crime Commissioner for Cumbria,201707105,26/07/17,179022,750.00,PMD Magnetics (Pangbourne Musical Distributors Ltd),20329,212005,Operations,Operational Equipment - Recordable Media,Revenue,,
Police and Crime Commissioner for Cumbria,201707111,04/07/17,178532,575.00,Redacted: Operationally Sensitive,23798,292005,Intelligence,Hotel Accommodation - Training,Revenue,,
Police and Crime Commissioner for Cumbria,201707155,19/07/17,178904,650.46,Redacted: Personal Data,24013,272300,Operations,Witness Intermediary Scheme Payments,Revenue,,
Police and Crime Commissioner for Cumbria,201707156,12/07/17,178786,652.12,Redacted: Personal Data,24013,272100,Operations,Witness Intermediary Scheme Payments,Revenue,,
Police and Crime Commissioner for Cumbria,201707159,26/07/17,179011,515.27,Redacted: Personal Data,23735,272300,Operations,Witness Intermediary Scheme Payments,Revenue,,
Police and Crime Commissioner for Cumbria,201707168,12/07/17,178658,663.00,Centric Office Solutions Limited,20459,282005,Intelligence,Furniture - General,Revenue,,
Police and Crime Commissioner for Cumbria,201707183,04/07/17,178540,"4,643.47",Redacted: Operationally Sensitive,23165,274005,Operations,Redacted: Operationally Sensitive,Revenue,,
Police and Crime Commissioner for Cumbria,201707189,19/07/17,178847,"4,233.02",Redacted: Operationally Sensitive,23165,274005,Operations,Redacted: Operationally Sensitive,Revenue,,
Police and Crime Commissioner for Cumbria,201707195,19/07/17,178847,"4,797.50",Redacted: Operationally Sensitive,23165,274005,Operations,Redacted: Operationally Sensitive,Revenue,,
Police and Crime Commissioner for Cumbria,201707202,26/07/17,178953,"5,332.26",Redacted: Operationally Sensitive,23165,274005,Operations,Redacted: Operationally Sensitive,Revenue,,
Police and Crime Commissioner for Cumbria,201707232,04/07/17,178558,"13,600.00",Redacted: Operationally Sensitive,20845,292005,Intelligence,Redacted: Operationally Sensitive,Revenue,,
Police and Crime Commissioner for Cumbria,201707253,04/07/17,178549,"2,633.05",Redacted: Personal Data,21030,274005,Operations,Pathologists Fees,Revenue,,
Police and Crime Commissioner for Cumbria,201707254,19/07/17,178857,"2,633.05",Redacted: Personal Data,21030,221100,Operations,Pathologists Fees,Revenue,,
Police and Crime Commissioner for Cumbria,201707255,19/07/17,178857,"2,633.05",Redacted: Personal Data,21030,221100,Operations,Pathologists Fees,Revenue,,
Police and Crime Commissioner for Cumbria,201707285,04/07/17,178574,"1,074.94",Redacted: Personal Data,24052,272200,Operations,Witness Intermediary Scheme Payments,Revenue,,
Police and Crime Commissioner for Cumbria,201707287,12/07/17,178669,"1,518.00",College of Policing (NPIA),22731,220300,Operations,Other Operational Training,Revenue,,
Police and Crime Commissioner for Cumbria,201707296,04/07/17,178515,"2,105.61",Acota Limited,22053,211005,Operations,CSI Consumables,Revenue,,
Police and Crime Commissioner for Cumbria,201707302,26/07/17,178997,"1,230.47",LGC Forensics Limited,21106,213100,CID Major Crime,Forensic Analysis - Volume Crime,Revenue,,
Police and Crime Commissioner for Cumbria,201707303,26/07/17,178997,"2,713.16",LGC Forensics Limited,21106,213200,CID Major Crime,Forensic Analysis - Volume Crime,Revenue,,
Police and Crime Commissioner for Cumbria,201707304,26/07/17,178997,"1,750.64",LGC Forensics Limited,21106,213300,CID Major Crime,Forensic Analysis - Volume Crime,Revenue,,
Police and Crime Commissioner for Cumbria,201707323,26/07/17,178965,580.62,Redacted: Personal Data,24456,272100,Operations,Witness Intermediary Scheme Payments,Revenue,,
Police and Crime Commissioner for Cumbria,201707027,12/07/17,178758,"7,384.00",Nationwide Franking Sense Ltd,24397,385005,Central Services Department,Office Equipment - Purchase,Revenue,,
Police and Crime Commissioner for Cumbria,201707049,04/07/17,178544,"3,200.19",Cumbria County Council,20268,384005,Central Services Department,Courier Services - Internal Deliveries,Revenue,,
Police and Crime Commissioner for Cumbria,201707050,26/07/17,178958,"3,352.58",Cumbria County Council,20268,384005,Central Services Department,Courier Services - Internal Deliveries,Revenue,,
Police and Crime Commissioner for Cumbria,201707053,26/07/17,178973,904.20,Redacted: Commercially Sensitive,21183,385005,Central Services Department,Offsite Storage of Documents,Revenue,,
Police and Crime Commissioner for Cumbria,201707054,26/07/17,178973,586.14,Redacted: Commercially Sensitive,21183,385300,Central Services Department,Offsite Storage of Documents,Revenue,,
Police and Crime Commissioner for Cumbria,201707055,26/07/17,178973,894.30,Redacted: Commercially Sensitive,21183,385200,Central Services Department,Offsite Storage of Documents,Revenue,,
Police and Crime Commissioner for Cumbria,201707056,26/07/17,178973,516.06,Redacted: Commercially Sensitive,21183,385100,Central Services Department,Offsite Storage of Documents,Revenue,,
Police and Crime Commissioner for Cumbria,201707065,12/07/17,178772,725.00,PSS Home Entertainment Ltd (Penrith Satellite Systems),20865,380005,Central Services Department,Office Equipment - Purchase,Revenue,,
Police and Crime Commissioner for Cumbria,201707037,19/07/17,178853,640.00,Dawson Electrical Services Ltd,21633,752005,Earmarked Funds,Unplanned Building Services Electrics,Revenue,,
Police and Crime Commissioner for Cumbria,201707088,12/07/17,178706,795.00,Redacted: Operationally Sensitive,20336,752005,Earmarked Funds,Redacted: Operationally Sensitive,Revenue,Yes,sensitive
Police and Crime Commissioner for Cumbria,201707089,19/07/17,178868,"1,350.00",Redacted: Operationally Sensitive,20336,777005,Earmarked Funds,Redacted: Operationally Sensitive,Revenue,Yes,sensitive
Police and Crime Commissioner for Cumbria,201707090,12/07/17,178706,"1,450.00",Redacted: Operationally Sensitive,20336,752005,Earmarked Funds,Redacted: Operationally Sensitive,Revenue,Yes,sensitive
Police and Crime Commissioner for Cumbria,201707188,04/07/17,178540,930.40,Comensura Ltd,23165,756005,Earmarked Funds,Agency Staff,Revenue,no,
Police and Crime Commissioner for Cumbria,201707194,19/07/17,178847,930.40,Comensura Ltd,23165,756005,Earmarked Funds,Agency Staff,Revenue,no,
Police and Crime Commissioner for Cumbria,201707201,19/07/17,178847,930.40,Comensura Ltd,23165,756005,Earmarked Funds,Agency Staff,Revenue,no,
Police and Crime Commissioner for Cumbria,201707208,26/07/17,178953,930.40,Comensura Ltd,23165,756005,Earmarked Funds,Agency Staff,Revenue,no,
Police and Crime Commissioner for Cumbria,201707322,19/07/17,178882,"11,732.00",Redacted: Operationally Sensitive,21971,752005,Earmarked Funds,Redacted: Operationally Sensitive,Revenue,Yes,sensitive
Police and Crime Commissioner for Cumbria,201707001,19/07/17,178859,"1,922.33",EE Limited,21972,303005,Information Communications Technology,Telephone Charges - Mobile Phones,Revenue,,
Police and Crime Commissioner for Cumbria,201707002,19/07/17,178859,"6,855.09",EE Limited,21972,303005,Information Communications Technology,Telephone Charges - Mobile Phones,Revenue,,
Police and Crime Commissioner for Cumbria,201707064,12/07/17,178772,510.00,PSS Home Entertainment Ltd (Penrith Satellite Systems),20865,305005,Information Communications Technology,Office Equipment - Purchase,Revenue,,
Police and Crime Commissioner for Cumbria,201707068,19/07/17,178899,532.00,PSS Home Entertainment Ltd (Penrith Satellite Systems),20865,301005,Information Communications Technology,Office Equipment - Maintenance,Revenue,,
Police and Crime Commissioner for Cumbria,201707113,26/07/17,178947,"5,278.34",Capita Secure Information Solutions Ltd,21043,301005,Information Communications Technology,Computer Software - Maintenance,Revenue,,
Police and Crime Commissioner for Cumbria,201707124,12/07/17,178697,"5,670.00",Enlighten Training & Consultancy Ltd,23746,301005,Information Communications Technology,Other Operational Training,Revenue,,
Police and Crime Commissioner for Cumbria,201707125,12/07/17,178697,"6,930.00",Enlighten Training & Consultancy Ltd,23746,301005,Information Communications Technology,Other Operational Training,Revenue,,
Police and Crime Commissioner for Cumbria,201707126,12/07/17,178697,"6,930.00",Enlighten Training & Consultancy Ltd,23746,301005,Information Communications Technology,Other Operational Training,Revenue,,
Police and Crime Commissioner for Cumbria,201707127,12/07/17,178697,"6,930.00",Enlighten Training & Consultancy Ltd,23746,301005,Information Communications Technology,Other Operational Training,Revenue,,
Police and Crime Commissioner for Cumbria,201707128,12/07/17,178697,"1,260.00",Enlighten Training & Consultancy Ltd,23746,301005,Information Communications Technology,Other Operational Training,Revenue,,
Police and Crime Commissioner for Cumbria,201707129,12/07/17,178697,630.00,Enlighten Training & Consultancy Ltd,23746,301005,Information Communications Technology,Other Operational Training,Revenue,,
Police and Crime Commissioner for Cumbria,201707130,12/07/17,178697,"1,575.00",Enlighten Training & Consultancy Ltd,23746,301005,Information Communications Technology,Other Operational Training,Revenue,,
Police and Crime Commissioner for Cumbria,201707131,12/07/17,178697,"1,260.00",Enlighten Training & Consultancy Ltd,23746,301005,Information Communications Technology,Other Operational Training,Revenue,,
Police and Crime Commissioner for Cumbria,201707132,12/07/17,178697,"1,575.00",Enlighten Training & Consultancy Ltd,23746,301005,Information Communications Technology,Other Operational Training,Revenue,,
Police and Crime Commissioner for Cumbria,201707133,12/07/17,178697,630.00,Enlighten Training & Consultancy Ltd,23746,301005,Information Communications Technology,Other Operational Training,Revenue,,
Police and Crime Commissioner for Cumbria,201707157,26/07/17,179049,"15,398.32",Utilise IT Ltd,22541,301005,Information Communications Technology,Consultants Fees - ICT,Revenue,,
Police and Crime Commissioner for Cumbria,201707181,26/07/17,179029,934.50,QA Training Ltd,22406,302005,Information Communications Technology,ICT Training,Revenue,,
Police and Crime Commissioner for Cumbria,201707182,26/07/17,179029,"2,254.56",QA Training Ltd,22406,301005,Information Communications Technology,ICT Training,Revenue,,
Police and Crime Commissioner for Cumbria,201707184,04/07/17,178540,"13,836.36",Comensura Ltd,23165,301005,Information Communications Technology,Agency Staff,Revenue,,
Police and Crime Commissioner for Cumbria,201707185,04/07/17,178540,"4,460.30",Comensura Ltd,23165,305005,Information Communications Technology,Agency Staff,Revenue,,
Police and Crime Commissioner for Cumbria,201707190,19/07/17,178847,"13,559.07",Comensura Ltd,23165,301005,Information Communications Technology,Agency Staff,Revenue,,
Police and Crime Commissioner for Cumbria,201707191,19/07/17,178847,"1,500.00",Comensura Ltd,23165,302005,Information Communications Technology,Agency Staff,Revenue,,
Police and Crime Commissioner for Cumbria,201707196,19/07/17,178847,"13,926.70",Comensura Ltd,23165,301005,Information Communications Technology,Agency Staff,Revenue,,
Police and Crime Commissioner for Cumbria,201707197,19/07/17,178847,"3,900.00",Comensura Ltd,23165,302005,Information Communications Technology,Agency Staff,Revenue,,
Police and Crime Commissioner for Cumbria,201707198,19/07/17,178847,"2,230.15",Comensura Ltd,23165,305005,Information Communications Technology,Agency Staff,Revenue,,
Police and Crime Commissioner for Cumbria,201707203,26/07/17,178953,"13,807.76",Comensura Ltd,23165,301005,Information Communications Technology,Agency Staff,Revenue,,
Police and Crime Commissioner for Cumbria,201707204,26/07/17,178953,"1,500.00",Comensura Ltd,23165,302005,Information Communications Technology,Agency Staff,Revenue,,
Police and Crime Commissioner for Cumbria,201707205,26/07/17,178953,"4,460.30",Comensura Ltd,23165,305005,Information Communications Technology,Agency Staff,Revenue,,
Police and Crime Commissioner for Cumbria,201707214,12/07/17,178812,"(1,582.05)",Vodafone Limited,20704,302005,Information Communications Technology,Telephone Charges - Landlines,Revenue,,
Police and Crime Commissioner for Cumbria,201707215,12/07/17,178812,804.00,Vodafone Limited,20704,302005,Information Communications Technology,Networks Private Circuits,Revenue,,
Police and Crime Commissioner for Cumbria,201707216,12/07/17,178812,"1,776.00",Vodafone Limited,20704,302005,Information Communications Technology,Networks Private Circuits,Revenue,,
Police and Crime Commissioner for Cumbria,201707217,19/07/17,178915,804.00,Vodafone Limited,20704,302005,Information Communications Technology,Networks Private Circuits,Revenue,,
Police and Crime Commissioner for Cumbria,201707218,26/07/17,179051,"8,701.87",Vodafone Limited,20704,302005,Information Communications Technology,Networks Private Circuits,Revenue,,
Police and Crime Commissioner for Cumbria,201707219,19/07/17,178915,"1,776.00",Vodafone Limited,20704,302005,Information Communications Technology,Networks Private Circuits,Revenue,,
Police and Crime Commissioner for Cumbria,201707220,19/07/17,178915,804.00,Vodafone Limited,20704,302005,Information Communications Technology,Networks Private Circuits,Revenue,,
Police and Crime Commissioner for Cumbria,201707221,19/07/17,178915,"1,776.00",Vodafone Limited,20704,302005,Information Communications Technology,Networks Private Circuits,Revenue,,
Police and Crime Commissioner for Cumbria,201707222,19/07/17,178915,804.00,Vodafone Limited,20704,302005,Information Communications Technology,Networks Private Circuits,Revenue,,
Police and Crime Commissioner for Cumbria,201707223,19/07/17,178911,"2,717.79",TalkTalk,22150,302005,Information Communications Technology,Telephone Charges - Landlines,Revenue,,
Police and Crime Commissioner for Cumbria,201707226,26/07/17,179015,"1,641.35",Redacted: Commercially Sensitive,20193,301005,Information Communications Technology,Computer Software - Maintenance,Revenue,,
Police and Crime Commissioner for Cumbria,201707230,26/07/17,178923,"13,523.01",Redacted: Commercially Sensitive,24430,301005,Information Communications Technology,Computer Software - Maintenance,Revenue,,
Police and Crime Commissioner for Cumbria,201707235,04/07/17,178599,"7,225.00",Ricoh UK Ltd,20724,301005,Information Communications Technology,Consultants Fees - ICT,Capital,,
Police and Crime Commissioner for Cumbria,201707238,04/07/17,178581,"1,020.00",Misco UK Ltd,20700,301005,Information Communications Technology,Computer Hardware - Purchase,Capital,,
Police and Crime Commissioner for Cumbria,201707239,26/07/17,179008,"4,480.00",Misco UK Ltd,20700,301005,Information Communications Technology,Computer Hardware - Purchase,Capital,,
Police and Crime Commissioner for Cumbria,201707240,26/07/17,179008,923.85,Misco UK Ltd,20700,301005,Information Communications Technology,Computer Hardware - Purchase,Capital,,
Police and Crime Commissioner for Cumbria,201707241,26/07/17,179008,"1,026.20",Misco UK Ltd,20700,301005,Information Communications Technology,Computer Hardware - Purchase,Capital,,
Police and Crime Commissioner for Cumbria,201707243,12/07/17,178663,"3,450.00",Cleartone Telecoms Plc,20590,303005,Information Communications Technology,Radio / Airwave Equipment - Purchases,Revenue,,
Police and Crime Commissioner for Cumbria,201707244,12/07/17,178663,700.00,Cleartone Telecoms Plc,20590,303005,Information Communications Technology,Radio / Airwave Equipment - Purchases,Revenue,,
Police and Crime Commissioner for Cumbria,201707263,26/07/17,179006,"64,851.00",Microsoft Limited,20672,301005,Information Communications Technology,Computer Software - Maintenance,Revenue,,
Police and Crime Commissioner for Cumbria,201707276,26/07/17,179027,741.00,Redacted: Commercially Sensitive,24226,302005,Information Communications Technology,Networks Private Circuits,Revenue,,
Police and Crime Commissioner for Cumbria,201707277,26/07/17,179027,"1,040.50",Redacted: Commercially Sensitive,24226,302005,Information Communications Technology,Networks Private Circuits,Revenue,,
Police and Crime Commissioner for Cumbria,201707286,26/07/17,2000926,"74,799.91",Airwave Solutions Limited ,21300,303005,Information Communications Technology,Radio / Airwave Equipment - Maintenance,Revenue,,
Police and Crime Commissioner for Cumbria,201707324,04/07/17,178614,"26,150.00",Xerox UK Ltd,20542,301005,Information Communications Technology,Computer Hardware - Purchase,Capital,,
Police and Crime Commissioner for Cumbria,201707326,04/07/17,178614,"(26,150.00)",Xerox UK Ltd,20542,301005,Information Communications Technology,Computer Hardware - Purchase,Capital,,
Police and Crime Commissioner for Cumbria,201707327,26/07/17,179056,"4,793.58",Xerox UK Ltd,20542,301005,Information Communications Technology,Computer & Printer Consumables,Revenue,,
Police and Crime Commissioner for Cumbria,201707328,26/07/17,179056,"1,345.45",Xerox UK Ltd,20542,301005,Information Communications Technology,Computer Hardware - Purchase,Capital,,
Police and Crime Commissioner for Cumbria,201707329,26/07/17,179056,"1,345.45",Xerox UK Ltd,20542,301005,Information Communications Technology,Computer Hardware - Purchase,Capital,,
Police and Crime Commissioner for Cumbria,201707330,26/07/17,179056,"13,454.50",Xerox UK Ltd,20542,301005,Information Communications Technology,Computer Hardware - Purchase,Capital,,
Police and Crime Commissioner for Cumbria,201707331,26/07/17,179056,"1,497.00",Xerox UK Ltd,20542,301005,Information Communications Technology,Computer Hardware - Purchase,Capital,,
Police and Crime Commissioner for Cumbria,201707332,26/07/17,179056,"2,690.90",Xerox UK Ltd,20542,301005,Information Communications Technology,Computer Hardware - Purchase,Capital,,
Police and Crime Commissioner for Cumbria,201707333,26/07/17,179056,"4,036.35",Xerox UK Ltd,20542,301005,Information Communications Technology,Computer Hardware - Purchase,Capital,,
Police and Crime Commissioner for Cumbria,201707271,04/07/17,178600,"1,115.06",Royal Mail,20345,888005,Earmarked Funds,Postage Costs,Revenue,,
Police and Crime Commissioner for Cumbria,201707272,19/07/17,178903,"1,307.57",Royal Mail,20345,888005,Earmarked Funds,Postage Costs,Revenue,,
Police and Crime Commissioner for Cumbria,201707273,19/07/17,178903,708.30,Royal Mail,20345,888005,Earmarked Funds,Postage Costs,Revenue,,
Police and Crime Commissioner for Cumbria,201707274,12/07/17,178782,"1,069.49",Royal Mail,20345,888005,Earmarked Funds,Postage Costs,Revenue,,
Police and Crime Commissioner for Cumbria,201707261,03/07/17,2000913,"2,429.88",Investec Asset Finance Plc,24280,870005,Earmarked Funds,Gym Equipment - Lease,Revenue,,
Police and Crime Commissioner for Cumbria,201707262,03/07/17,2000914,"2,121.00",Investec Asset Finance Plc,24280,870005,Earmarked Funds,Gym Equipment - Lease,Revenue,,
Police and Crime Commissioner for Cumbria,201707098,26/07/17,178996,"1,350.00",LAVAT Consulting Ltd - t/a PSTAX,24317,370005,Financial Services,Consultants Fees - Finance,Revenue,,
Police and Crime Commissioner for Cumbria,201707117,26/07/17,178983,"4,600.00",Government Actuary's Department,21166,370005,Financial Services,Consultants Fees - Finance,Revenue,,
Police and Crime Commissioner for Cumbria,201707224,25/07/17,2000923,"3,931.57",Natwest Corporate Card,22188,135005,Corporate Financing,NatWest Corporate Card Payments,Revenue,,
Police and Crime Commissioner for Cumbria,201707231,04/07/17,178580,"12,500.00",Midland HR,23053,370005,Financial Services,Payroll Services,Revenue,,
Police and Crime Commissioner for Cumbria,201707236,04/07/17,178563,"3,750.00",Grant Thornton UK LLP,22812,370005,Financial Services,External Audit Fee,Revenue,,
Police and Crime Commissioner for Cumbria,201707305,26/07/17,179020,"1,996.80",Phonographic Performance Limited (PPL),20011,135005,Corporate Financing,Subscriptions,Revenue,,
Police and Crime Commissioner for Cumbria,201707069,12/07/17,178772,"2,850.00",PSS Home Entertainment Ltd (Penrith Satellite Systems),20865,355005,Learning & Development,Training Equipment & Materials,Revenue,,
Police and Crime Commissioner for Cumbria,201707070,12/07/17,178772,"(2,850.00)",PSS Home Entertainment Ltd (Penrith Satellite Systems),20865,355005,Learning & Development,Training Equipment & Materials,Revenue,,
Police and Crime Commissioner for Cumbria,201707071,12/07/17,178772,"2,850.00",PSS Home Entertainment Ltd (Penrith Satellite Systems),20865,355005,Learning & Development,Office Equipment - Purchase,Revenue,,
Police and Crime Commissioner for Cumbria,201707112,19/07/17,178841,"1,581.67",Capita Travel and Events,23798,355005,Learning & Development,Hotel Accommodation - Training,Revenue,,
Police and Crime Commissioner for Cumbria,201707137,12/07/17,178726,800.00,Jill Grant Psychology Services,24374,355005,Learning & Development,Other Support Function Training,Revenue,,
Police and Crime Commissioner for Cumbria,201707257,12/07/17,178769,917.50,Police and Crime Commissioner for Lancashire,20310,355005,Learning & Development,Catering Training (Lancashire),Revenue,,
Police and Crime Commissioner for Cumbria,201707258,12/07/17,178769,543.50,Police and Crime Commissioner for Lancashire,20310,355005,Learning & Development,Catering Training (Lancashire),Revenue,,
Police and Crime Commissioner for Cumbria,201707259,04/07/17,178609,"12,000.00",The Atacc Group,23026,355005,Learning & Development,Other Operational Training,Revenue,,
Police and Crime Commissioner for Cumbria,201707288,12/07/17,178669,800.00,College of Policing (NPIA),22731,355005,Learning & Development,Other Support Function Training,Revenue,,
Police and Crime Commissioner for Cumbria,201707289,12/07/17,178669,800.00,College of Policing (NPIA),22731,355005,Learning & Development,Other Support Function Training,Revenue,,
Police and Crime Commissioner for Cumbria,201707291,12/07/17,178669,600.00,College of Policing (NPIA),22731,355005,Learning & Development,Other Support Function Training,Revenue,,
Police and Crime Commissioner for Cumbria,201707292,26/07/17,179046,500.00,Thomas International UK Ltd,24083,355005,Learning & Development,Leadership Training,Revenue,,
Police and Crime Commissioner for Cumbria,201707006,04/07/17,178542,655.00,Corporate Media Supplies Ltd T/A CM Brand,24402,040100,Commissioning Services,Contributions � PCC Commissioning Services,Revenue,,
Police and Crime Commissioner for Cumbria,201707007,04/07/17,178542,855.00,Corporate Media Supplies Ltd T/A CM Brand,24402,040100,Commissioning Services,Contributions � PCC Commissioning Services,Revenue,,
Police and Crime Commissioner for Cumbria,201707013,12/07/17,178779,732.00,Redacted: Personal Data,24441,033005,Office of the Police & Crime Commissioner,Other Allowances,Revenue,,
Police and Crime Commissioner for Cumbria,201707014,12/07/17,178779,500.62,Redacted: Personal Data,24441,033005,Office of the Police & Crime Commissioner,Other Allowances,Revenue,,
Police and Crime Commissioner for Cumbria,201707030,19/07/17,178912,"2,083.00",The Rock Currock Youth Project,23475,040500,Commissioning Services,Contributions � PCC Commissioning Services,Revenue,,
Police and Crime Commissioner for Cumbria,201707047,12/07/17,178785,"5,771.95",Safety Net (UK) - Advice & Support Centre,23107,050010,Sexual Assault Support Services,Other Third Party Payments,Revenue,,
Police and Crime Commissioner for Cumbria,201707048,04/07/17,178544,"32,500.00",Cumbria County Council,20268,040100,Commissioning Services,Contributions � PCC Commissioning Services,Revenue,,
Police and Crime Commissioner for Cumbria,201707079,12/07/17,178619,"7,268.78",1st Skelton Brownies (Girlguiding),24452,040400,Commissioning Services,Contributions � PCC Commissioning Services,Revenue,,
Police and Crime Commissioner for Cumbria,201707106,12/07/17,178622,"24,200.00",Ad Esse Consulting Ltd,24058,031005,Office of the Police & Crime Commissioner,Consultants Fees - Other,Revenue,,
Police and Crime Commissioner for Cumbria,201707107,12/07/17,178622,"2,001.61",Ad Esse Consulting Ltd,24058,031005,Office of the Police & Crime Commissioner,Consultants Fees - Other,Revenue,,
Police and Crime Commissioner for Cumbria,201707108,12/07/17,178811,"73,612.50",Victim Support - Cumbria,20513,040100,Commissioning Services,Contributions � PCC Commissioning Services,Revenue,,
Police and Crime Commissioner for Cumbria,201707109,26/07/17,179050,"3,575.75",Victim Support - Cumbria,20513,050010,Sexual Assault Support Services,Other Third Party Payments,Revenue,,
Police and Crime Commissioner for Cumbria,201707110,26/07/17,179050,"24,537.50",Victim Support - Cumbria,20513,040100,Commissioning Services,Contributions � PCC Commissioning Services,Revenue,,
Police and Crime Commissioner for Cumbria,201707138,12/07/17,178778,"7,600.00",Riverside,22078,040400,Commissioning Services,Contributions � PCC Commissioning Services,Revenue,,
Police and Crime Commissioner for Cumbria,201707141,19/07/17,178885,"3,489.74",Morecambe Bay Hospitals NHS Trust,20723,040200,Commissioning Services,Contributions � PCC Commissioning Services,Revenue,,
Police and Crime Commissioner for Cumbria,201707142,26/07/17,179009,"(3,489.74)",Morecambe Bay Hospitals NHS Trust,20723,040200,Commissioning Services,Contributions � PCC Commissioning Services,Revenue,,
Police and Crime Commissioner for Cumbria,201707143,19/07/17,178885,"3,871.78",Morecambe Bay Hospitals NHS Trust,20723,040200,Commissioning Services,Contributions � PCC Commissioning Services,Revenue,,
Police and Crime Commissioner for Cumbria,201707144,19/07/17,178885,"(3,871.78)",Morecambe Bay Hospitals NHS Trust,20723,040200,Commissioning Services,Contributions � PCC Commissioning Services,Revenue,,
Police and Crime Commissioner for Cumbria,201707145,26/07/17,179009,"3,149.37",Morecambe Bay Hospitals NHS Trust,20723,040200,Commissioning Services,Contributions � PCC Commissioning Services,Revenue,,
Police and Crime Commissioner for Cumbria,201707146,26/07/17,179009,"4,791.90",Morecambe Bay Hospitals NHS Trust,20723,040200,Commissioning Services,Contributions � PCC Commissioning Services,Revenue,,
Police and Crime Commissioner for Cumbria,201707147,26/07/17,179009,"3,381.15",Morecambe Bay Hospitals NHS Trust,20723,040200,Commissioning Services,Contributions � PCC Commissioning Services,Revenue,,
Police and Crime Commissioner for Cumbria,201707148,12/07/17,178803,"12,012.50",The Well,24059,040300,Commissioning Services,Contributions � PCC Commissioning Services,Revenue,,
Police and Crime Commissioner for Cumbria,201707149,12/07/17,178684,"2,166.67",Dignity in Dementia,23903,040100,Commissioning Services,Contributions � PCC Commissioning Services,Revenue,,
Police and Crime Commissioner for Cumbria,201707150,19/07/17,178854,"4,326.67",Dignity in Dementia,23903,040100,Commissioning Services,Contributions � PCC Commissioning Services,Revenue,,
Police and Crime Commissioner for Cumbria,201707151,12/07/17,178684,"2,166.67",Dignity in Dementia,23903,040100,Commissioning Services,Contributions � PCC Commissioning Services,Revenue,,
Police and Crime Commissioner for Cumbria,201707161,19/07/17,178909,"50,000.00",South Lakeland District Council,20620,040100,Commissioning Services,Contributions � PCC Commissioning Services,Revenue,,
Police and Crime Commissioner for Cumbria,201707162,19/07/17,178909,"10,000.00",South Lakeland District Council,20620,040100,Commissioning Services,Contributions � PCC Commissioning Services,Revenue,,
Police and Crime Commissioner for Cumbria,201707174,26/07/17,178924,"3,600.00",Ambleside Parish Centre,23309,040400,Commissioning Services,Contributions � PCC Commissioning Services,Revenue,,
Police and Crime Commissioner for Cumbria,201707227,19/07/17,178889,"3,032.71",North Cumbria University Hospitals NHS Trust,20879,040100,Commissioning Services,Contributions � PCC Commissioning Services,Revenue,,
Police and Crime Commissioner for Cumbria,201707237,04/07/17,178563,"7,585.00",Grant Thornton UK LLP,22812,031005,Office of the Police & Crime Commissioner,External Audit Fee,Revenue,,
Police and Crime Commissioner for Cumbria,201707266,12/07/17,178776,"9,750.00",Remedi-Restorative Services,23985,040500,Commissioning Services,Other Miscellaneous Expenditure,Revenue,,
Police and Crime Commissioner for Cumbria,201707267,12/07/17,178776,"9,750.00",Remedi-Restorative Services,23985,040500,Commissioning Services,Contributions � PCC Commissioning Services,Revenue,,
Police and Crime Commissioner for Cumbria,201707268,12/07/17,178776,"(9,750.00)",Remedi-Restorative Services,23985,040500,Commissioning Services,Other Miscellaneous Expenditure,Revenue,,
Police and Crime Commissioner for Cumbria,201707295,19/07/17,178878,"2,450.00",Korn Ferry Hay Group,24136,031005,Office of the Police & Crime Commissioner,Consultants Fees - Other,Revenue,,
Police and Crime Commissioner for Cumbria,201707004,12/07/17,178634,565.60,Arrow County Supplies,20146,000000,Balance Sheet,Inventories/Stocks - General / Admin Equipment - Purchases,Balance,,
Police and Crime Commissioner for Cumbria,201707099,04/07/17,178612,"1,274.00",W A Products (UK) Ltd,20477,000000,Balance Sheet,Inventories/Stocks - General / Admin Equipment - Purchases,Balance,,
Police and Crime Commissioner for Cumbria,201707121,19/07/17,178922,659.00,Yaffy (MWUK Ltd),20371,000000,Balance Sheet,Inventories/Stocks - Uniforms - Purchases,Balance,,
Police and Crime Commissioner for Cumbria,201707122,26/07/17,179057,808.00,Yaffy (MWUK Ltd),20371,000000,Balance Sheet,Inventories/Stocks - Uniforms - Purchases,Balance,,
Police and Crime Commissioner for Cumbria,201707139,26/07/17,179003,549.50,MC Products UK Ltd,20427,000000,Balance Sheet,Inventories/Stocks - Uniforms - Purchases,Balance,,
Police and Crime Commissioner for Cumbria,201707177,12/07/17,178676,"1,933.80",Cromwell Tools,21324,344005,Procurement & Stores,Operational Equipment - Other,Revenue,,
Police and Crime Commissioner for Cumbria,201707242,04/07/17,178522,"1,756.00",Axess International Limited,22044,000000,Balance Sheet,Inventories/Stocks - Uniforms - Purchases,Balance,,
Police and Crime Commissioner for Cumbria,201707029,19/07/17,178891,830.00,P & A Medical Ltd,21132,352005,People Department,Medical Equipment,Revenue,,
Police and Crime Commissioner for Cumbria,201707036,04/07/17,178546,"1,457.11",Cumbrian Newspapers Limited,20269,350005,People Department,External Advertising (Recruitment),Revenue,,
Police and Crime Commissioner for Cumbria,201707059,12/07/17,178709,"2,100.00",Green Ends Limited,21610,352005,People Department,Ergonomist,Revenue,,
Police and Crime Commissioner for Cumbria,201707060,12/07/17,178709,"2,100.00",Green Ends Limited,21610,352005,People Department,Ergonomist,Revenue,,
Police and Crime Commissioner for Cumbria,201707061,12/07/17,178709,"2,520.00",Green Ends Limited,21610,352005,People Department,Ergonomist,Revenue,,
Police and Crime Commissioner for Cumbria,201707152,04/07/17,178552,575.00,Redacted: Personal Data,21195,352005,People Department,Force Doctor Fees,Revenue,,
Police and Crime Commissioner for Cumbria,201707153,12/07/17,178689,575.00,Redacted: Personal Data,21195,352005,People Department,Force Doctor Fees,Revenue,,
Police and Crime Commissioner for Cumbria,201707154,26/07/17,178964,575.00,Redacted: Personal Data,21195,352005,People Department,Force Doctor Fees,Revenue,,
Police and Crime Commissioner for Cumbria,201707169,26/07/17,178951,530.00,Centric Office Solutions Limited,20459,422005,People Department,Furniture - DSE Specialist Furniture,Revenue,,
Police and Crime Commissioner for Cumbria,201707179,19/07/17,178914,500.00,Trim Training CBT,22418,352005,People Department,Subscriptions,Revenue,,
Police and Crime Commissioner for Cumbria,201707209,19/07/17,178880,900.00,Mancunian Medics Ltd,24368,352005,People Department,Force Doctor Fees,Revenue,,
Police and Crime Commissioner for Cumbria,201707210,19/07/17,178880,900.00,Mancunian Medics Ltd,24368,352005,People Department,Force Doctor Fees,Revenue,,
Police and Crime Commissioner for Cumbria,201707211,19/07/17,178880,900.00,Mancunian Medics Ltd,24368,352005,People Department,Force Doctor Fees,Revenue,,
Police and Crime Commissioner for Cumbria,201707212,19/07/17,178880,900.00,Mancunian Medics Ltd,24368,352005,People Department,Force Doctor Fees,Revenue,,
Police and Crime Commissioner for Cumbria,201707290,12/07/17,178669,"1,518.00",College of Policing (NPIA),22731,422005,People Department,Other Operational Training,Revenue,,
Police and Crime Commissioner for Cumbria,201707009,19/07/17,178845,"1,365.40",Chubb Fire & Security Limited,20696,332205,Estates & Facilities,Minor Works,Revenue,,
Police and Crime Commissioner for Cumbria,201707010,19/07/17,178845,533.25,Chubb Fire & Security Limited,20696,332205,Estates & Facilities,Unplanned Building Services Security & Security Equipment Maintenance,Revenue,,
Police and Crime Commissioner for Cumbria,201707011,19/07/17,178845,912.00,Chubb Fire & Security Limited,20696,332010,Estates & Facilities,Security and Alarms (inc locks),Revenue,,
Police and Crime Commissioner for Cumbria,201707012,19/07/17,178845,531.90,Chubb Fire & Security Limited,20696,332101,Estates & Facilities,Unplanned Building Services Security & Security Equipment Maintenance,Revenue,,
Police and Crime Commissioner for Cumbria,201707015,26/07/17,178946,"4,357.18",Bulloughs Cleaning Services Ltd,22016,332155,Estates & Facilities,Cleaning Contract,Revenue,,
Police and Crime Commissioner for Cumbria,201707016,26/07/17,178946,531.36,Bulloughs Cleaning Services Ltd,22016,332252,Estates & Facilities,Cleaning Contract,Revenue,,
Police and Crime Commissioner for Cumbria,201707017,26/07/17,178946,"3,241.32",Bulloughs Cleaning Services Ltd,22016,332205,Estates & Facilities,Cleaning Contract,Revenue,,
Police and Crime Commissioner for Cumbria,201707018,26/07/17,178946,"1,966.05",Bulloughs Cleaning Services Ltd,22016,332204,Estates & Facilities,Cleaning Contract,Revenue,,
Police and Crime Commissioner for Cumbria,201707019,26/07/17,178946,"12,008.84",Bulloughs Cleaning Services Ltd,22016,332010,Estates & Facilities,Cleaning Contract,Revenue,,
Police and Crime Commissioner for Cumbria,201707020,26/07/17,178946,"3,028.77",Bulloughs Cleaning Services Ltd,22016,332101,Estates & Facilities,Cleaning Contract,Revenue,,
Police and Crime Commissioner for Cumbria,201707021,26/07/17,178946,"1,328.41",Bulloughs Cleaning Services Ltd,22016,332250,Estates & Facilities,Cleaning Contract,Revenue,,
Police and Crime Commissioner for Cumbria,201707022,26/07/17,178946,"1,328.41",Bulloughs Cleaning Services Ltd,22016,332301,Estates & Facilities,Cleaning Contract,Revenue,,
Police and Crime Commissioner for Cumbria,201707023,19/07/17,178839,500.00,Bulloughs Cleaning Services Ltd,22016,332010,Estates & Facilities,Window Cleaning,Revenue,,
Police and Crime Commissioner for Cumbria,201707031,12/07/17,178775,"2,030.00",Refrigeration (Mitton) Ltd,21024,332010,Estates & Facilities,Planned Servicing HVAC System,Revenue,,
Police and Crime Commissioner for Cumbria,201707032,12/07/17,178775,725.00,Refrigeration (Mitton) Ltd,21024,332155,Estates & Facilities,Planned Servicing HVAC System,Revenue,,
Police and Crime Commissioner for Cumbria,201707033,26/07/17,178935,580.00,B K Screenprint,20462,332010,Estates & Facilities,Minor Works,Revenue,,
Police and Crime Commissioner for Cumbria,201707034,26/07/17,178935,(580.00),B K Screenprint,20462,332010,Estates & Facilities,Minor Works,Revenue,,
Police and Crime Commissioner for Cumbria,201707035,26/07/17,178935,580.00,B K Screenprint,20462,332010,Estates & Facilities,Premises Signage,Revenue,,
Police and Crime Commissioner for Cumbria,201707038,26/07/17,178961,"1,680.00",Dawson Electrical Services Ltd,21633,332010,Estates & Facilities,Minor Works,Revenue,,
Police and Crime Commissioner for Cumbria,201707039,26/07/17,178961,520.00,Dawson Electrical Services Ltd,21633,332010,Estates & Facilities,Unplanned Building Services Electrics,Revenue,,
Police and Crime Commissioner for Cumbria,201707040,26/07/17,178961,590.00,Dawson Electrical Services Ltd,21633,332204,Estates & Facilities,Unplanned Building Services Electrics,Revenue,,
Police and Crime Commissioner for Cumbria,201707041,12/07/17,178727,"1,992.21",JJ Group (Contracting) Ltd,21159,332205,Estates & Facilities,Unplanned Building Services Electrics,Revenue,,
Police and Crime Commissioner for Cumbria,201707042,26/07/17,178959,"1,782.81",Cumbria Mechanical Plumbing Ltd,23213,332281,Estates & Facilities,Minor Works,Revenue,,
Police and Crime Commissioner for Cumbria,201707043,26/07/17,178959,797.26,Cumbria Mechanical Plumbing Ltd,23213,332101,Estates & Facilities,Unplanned Building Services Environmental Services/Plumbing,Revenue,,
Police and Crime Commissioner for Cumbria,201707046,19/07/17,178842,"7,750.00",Carlisle City Council (Carlisle Ambassadors),20390,332205,Estates & Facilities,Estates Leases,Revenue,,
Police and Crime Commissioner for Cumbria,201707057,19/07/17,178907,"1,898.00",Solway Plain Futures Ltd,22417,332358,Estates & Facilities,Estates Leases,Revenue,,
Police and Crime Commissioner for Cumbria,201707091,12/07/17,178706,"2,800.00",Frederick Potts & Sons Ltd,20336,332254,Estates & Facilities,Planned External Painting,Revenue,,
Police and Crime Commissioner for Cumbria,201707092,19/07/17,178868,731.29,Frederick Potts & Sons Ltd,20336,332010,Estates & Facilities,Unplanned Building Services Environmental Services/Plumbing,Revenue,,
Police and Crime Commissioner for Cumbria,201707096,26/07/17,178936,"3,076.50",Baker Mallett LLP,23905,332010,Estates & Facilities,Professional Fees,Capital,,
Police and Crime Commissioner for Cumbria,201707118,12/07/17,178818,"100,965.33",West Cumbria Estates Management Limited,20884,332350,Estates & Facilities,PFI Occupancy Charges,Revenue,,
Police and Crime Commissioner for Cumbria,201707119,12/07/17,178787,"2,479.55",Scottish Fuels,20732,332010,Estates & Facilities,Oil,Revenue,,
Police and Crime Commissioner for Cumbria,201707120,19/07/17,178905,"2,752.20",Scottish Fuels,20732,332010,Estates & Facilities,Oil,Revenue,,
Police and Crime Commissioner for Cumbria,201707123,19/07/17,178837,546.20,British Gas Trading,20585,332010,Estates & Facilities,Electricity,Revenue,,
Police and Crime Commissioner for Cumbria,201707136,19/07/17,178834,643.00,Biffa Waste Services Ltd,20250,332010,Estates & Facilities,Refuse,Revenue,,
Police and Crime Commissioner for Cumbria,201707172,12/07/17,178751,"1,625.00",Millom Network Centre,22712,332312,Estates & Facilities,Estates Leases,Revenue,,
Police and Crime Commissioner for Cumbria,201707176,19/07/17,178866,642.05,Flogas Britain Ltd,22983,332024,Estates & Facilities,Gas,Revenue,,
Police and Crime Commissioner for Cumbria,201707178,19/07/17,178887,"1,500.00",National Police Estates Group,22607,330005,Estates & Facilities,Professional Fees,Revenue,,
Police and Crime Commissioner for Cumbria,201707225,26/07/17,179048,780.00,Ulverston Properties Ltd,23815,332175,Estates & Facilities,Estates Leases,Revenue,,
Police and Crime Commissioner for Cumbria,201707229,12/07/17,178701,866.38,Eon Energy Limited,21348,332360,Estates & Facilities,Electricity,Revenue,,
Police and Crime Commissioner for Cumbria,201707246,12/07/17,178695,"2,868.31",EDF Energy,21122,332101,Estates & Facilities,Electricity,Revenue,,
Police and Crime Commissioner for Cumbria,201707247,12/07/17,178695,"4,358.01",EDF Energy,21122,332155,Estates & Facilities,Electricity,Revenue,,
Police and Crime Commissioner for Cumbria,201707248,12/07/17,178695,"8,065.66",EDF Energy,21122,332205,Estates & Facilities,Electricity,Revenue,,
Police and Crime Commissioner for Cumbria,201707249,12/07/17,178695,"14,858.65",EDF Energy,21122,332010,Estates & Facilities,Electricity,Revenue,,
Police and Crime Commissioner for Cumbria,201707250,12/07/17,178695,822.91,EDF Energy,21122,332010,Estates & Facilities,Climate Change Levy,Revenue,,
Police and Crime Commissioner for Cumbria,201707269,26/07/17,178934,848.00,ASSA ABLOY Entrance Systems Ltd,21142,332155,Estates & Facilities,Unplanned Building Maintenance Safety Works,Revenue,,
Police and Crime Commissioner for Cumbria,201707270,26/07/17,178934,"1,028.00",ASSA ABLOY Entrance Systems Ltd,21142,332155,Estates & Facilities,Unplanned Building Maintenance Safety Works,Revenue,,
Police and Crime Commissioner for Cumbria,201707278,19/07/17,178855,524.53,Dorma UK Ltd,20963,333000,Estates & Facilities,North West Ambulance Service - Estates Management Collaboration,Revenue,,
Police and Crime Commissioner for Cumbria,201707279,19/07/17,178855,663.83,Dorma UK Ltd,20963,333000,Estates & Facilities,North West Ambulance Service - Estates Management Collaboration,Revenue,,
Police and Crime Commissioner for Cumbria,201707280,19/07/17,178855,652.00,Dorma UK Ltd,20963,333000,Estates & Facilities,North West Ambulance Service - Estates Management Collaboration,Revenue,,
Police and Crime Commissioner for Cumbria,201707281,26/07/17,178962,"1,019.17",Dorma UK Ltd,20963,333000,Estates & Facilities,North West Ambulance Service - Estates Management Collaboration,Revenue,,
Police and Crime Commissioner for Cumbria,201707282,26/07/17,178962,"1,617.17",Dorma UK Ltd,20963,333000,Estates & Facilities,North West Ambulance Service - Estates Management Collaboration,Revenue,,
Police and Crime Commissioner for Cumbria,201707283,26/07/17,178955,641.66,Countrywide Grounds Maintenance Ltd,23920,333000,Estates & Facilities,North West Ambulance Service - Estates Management Collaboration,Revenue,,
Police and Crime Commissioner for Cumbria,201707284,26/07/17,178955,"1,125.00",Countrywide Grounds Maintenance Ltd,23920,332010,Estates & Facilities,Grounds Maintenance - Contract,Revenue,,
Police and Crime Commissioner for Cumbria,201707293,19/07/17,178918,700.68,Water Plus Limited,20326,332155,Estates & Facilities,Sewerage & Environmental Services,Revenue,,
Police and Crime Commissioner for Cumbria,201707308,04/07/17,178541,726.23,Corona Energy,24332,332010,Estates & Facilities,Gas,Revenue,,
Police and Crime Commissioner for Cumbria,201707309,04/07/17,178541,"5,981.12",Corona Energy,24332,332010,Estates & Facilities,Gas,Revenue,,
Police and Crime Commissioner for Cumbria,201707310,12/07/17,178672,"1,460.54",Corona Energy,24332,332155,Estates & Facilities,Gas,Revenue,,
Police and Crime Commissioner for Cumbria,201707311,12/07/17,178672,"1,986.17",Corona Energy,24332,332155,Estates & Facilities,Gas,Revenue,,
Police and Crime Commissioner for Cumbria,201707312,26/07/17,178954,"2,513.07",Corona Energy,24332,332010,Estates & Facilities,Gas,Revenue,,
Police and Crime Commissioner for Cumbria,201707008,12/07/17,178627,"1,319.82",Allstar Business Solutions Ltd,21017,321005,Fleet Services,Vehicle Fuel,Revenue,,
Police and Crime Commissioner for Cumbria,201707074,12/07/17,178792,"4,013.49",Sproat Parker t/a Morrison's Motor Body Repairs Ltd,21200,321005,Fleet Services,Accident Damage (Below Insurance Threshold),Revenue,,
Police and Crime Commissioner for Cumbria,201707077,26/07/17,179043,"4,828.57",Sproat Parker t/a Morrison's Motor Body Repairs Ltd,21200,321005,Fleet Services,Accident Damage (Below Insurance Threshold),Revenue,,
Police and Crime Commissioner for Cumbria,201707102,04/07/17,178560,629.75,Ford Motor Co Ltd,20596,320005,Fleet Services,Vehicle Purchases - Capital,Capital,,
Police and Crime Commissioner for Cumbria,201707103,04/07/17,178560,"15,933.50",Ford Motor Co Ltd,20596,320005,Fleet Services,Vehicle Purchases - Capital,Capital,,
Police and Crime Commissioner for Cumbria,201707116,13/07/17,4099,745.00,Post Office Counters Ltd,23085,321005,Fleet Services,Vehicle Road Fund Licenses,Revenue,,
Police and Crime Commissioner for Cumbria,201707135,04/07/17,178539,"1,536.60",Co-Star Electronic Components,20508,321005,Fleet Services,Vehicle Adaptations - Capital,Capital,,
Police and Crime Commissioner for Cumbria,201707164,12/07/17,178742,"2,898.40",Long Lane Garage,20847,321005,Fleet Services,Accident Damage (Below Insurance Threshold),Revenue,,
Police and Crime Commissioner for Cumbria,201707314,14/07/17,2000924,"56,521.97",Allstar Business Solutions Ltd,21017,321005,Fleet Services,Vehicle Fuel,Revenue,,
Police and Crime Commissioner for Cumbria,201707315,14/07/17,2000917,"2,294.68",Redacted: Operationally Sensitive,21017,321005,Fleet Services,Redacted: Operationally Sensitive,Revenue,,
Police and Crime Commissioner for Cumbria,201707316,14/07/17,2000916,684.45,Redacted: Operationally Sensitive,21017,321005,Fleet Services,Redacted: Operationally Sensitive,Revenue,,
Police and Crime Commissioner for Cumbria,201707317,14/07/17,2000924,639.02,Allstar Business Solutions Ltd,21017,384005,Central Services Department,Vehicle Fuel,Revenue,,
Police and Crime Commissioner for Cumbria,201707318,14/07/17,2000924,"2,277.57",Allstar Business Solutions Ltd,21017,385200,Central Services Department,Vehicle Fuel,Revenue,,
Police and Crime Commissioner for Cumbria,201707319,14/07/17,2000924,"2,045.15",Allstar Business Solutions Ltd,21017,385100,Central Services Department,Vehicle Fuel,Revenue,,
Police and Crime Commissioner for Cumbria,201707320,14/07/17,2000924,"1,370.01",Allstar Business Solutions Ltd,21017,385300,Central Services Department,Vehicle Fuel,Revenue,,
Police and Crime Commissioner for Cumbria,201707321,14/07/17,2000924,"1,088.79",Allstar Business Solutions Ltd,21017,384005,Central Services Department,Vehicle Fuel,Revenue,,
Police and Crime Commissioner for Cumbria,201707072,26/07/17,179019,731.50,Penrith Rugby Union Football Club,22457,438005,Corporate Improvement,Catering - Meetings,Revenue,,
Police and Crime Commissioner for Cumbria,201707228,12/07/17,178712,611.00,Harlow Printing Ltd,20289,438005,Corporate Improvement,External Printing,Revenue,,
Police and Crime Commissioner for Cumbria,201707325,04/07/17,178614,"26,150.00",Xerox UK Ltd,20542,342005,Corporate Improvement,Print Unit - Printing Equipment & Maintenance,Capital,,
Police and Crime Commissioner for Cumbria,201707264,19/07/17,178896,585.00,Police Superintendents Association,20441,112005,Staff Associations,Conference & Seminar Fees,Revenue,,
Police and Crime Commissioner for Cumbria,201707265,19/07/17,178896,585.00,Police Superintendents Association,20441,112005,Staff Associations,Conference & Seminar Fees,Revenue,,
Police and Crime Commissioner for Cumbria,201707062,12/07/17,178733,613.85,King Street News,20988,100005,Corporate Improvement,Corporate Improvement - Marketing & Communications,Revenue,,
